Cogmind - Beta 17.1 @@@ ROGUE MODE // 2026.08.25 @ 10:49:24 Player: ATOM Result: Destroyed by Autobeam Turret with Autobeam Performance ------------- Evolutions (0) 0 Regions Visited (2) 400 Robots Destroyed (31) 155 Value Destroyed (730) 730 Prototype IDs (5) 100 Alien Tech Used (0) 0 Bonus (0) 0 TOTAL SCORE: 1385 Bonus ------- None Cogmind --------- Core Integrity 0/250 Matter 115/300 Energy 200/200 System Corruption 2% Temperature Cool (18) Movement Rolling (110) Ox2 Location -10/Subcaves Parts ------- > --- POWER (1) -------- Subdweller Power Source > --- PROPULSION (2) --- Wheel > --- UTILITY (2) ------ Large Storage Unit Sensor Array > --- WEAPON (2) ------- (None) > --- INVENTORY (15) --- Ion Engine Large Storage Unit Machine Analyzer ECM Suite Core Shielding Core Shielding Propulsion Shielding Utility Shielding Light Armor Plating Hacking Suite Autogun Light Cannon Mining Laser Peak State ------------ > --- POWER ------------ Light Nuclear Core > --- PROPULSION ------- Light Treads Wheel > --- UTILITY ---------- Large Storage Unit Sensor Array > --- WEAPON ----------- Heavy EM Pulse Gun Autogun > --- INVENTORY -------- Ion Engine Wheel Large Storage Unit ECM Suite Propulsion Shielding Utility Shielding Light Armor Plating Hacking Suite Autogun Grenade Launcher [Rating: 12] Favorites ----------- Power Light Ion Engine Engine Light Ion Engine Power Core Light Nuclear Core Propulsion Light Treads Treads Light Treads Wheel Wheel Utility Sensor Array Device Sensor Array Storage Large Storage Unit Weapon Heavy EM Pulse Gun Energy Gun Heavy EM Pulse Gun Ballistic Gun Autogun Ballistic Cannon Light Cannon Launcher Grenade Launcher Special Weapon Mining Laser Build | -11 -10 -10 ------- Run | Yrd Mat Sub Slots Evolved . | . . . Power . | . . . Propulsion . | . . . Utility . | . . . Weapon . | . . . Parts Attached 27 | 6 15 6 Power 5 | 1 2 2 Engine 4 | 1 1 2 Core 1 | . 1 . Reactor . | . . . Propulsion 6 | 2 2 2 Treads 2 | 2 . . Leg . | . . . Wheel 4 | . 2 2 Hover . | . . . Flight . | . . . Utility 5 | 1 4 . Device 2 | . 2 . Storage 3 | 1 2 . Processor . | . . . Hackware . | . . . Protection . | . . . Artifact . | . . . Weapon 11 | 2 7 2 Energy Gun 3 | . 3 . Energy Cannon . | . . . Ballistic Gun 4 | 2 2 . Ballistic Cannon 1 | . . 1 Launcher 2 | . 1 1 Special Weapon 1 | . 1 . Impact Weapon . | . . . Slashing Weapon . | . . . Piercing Weapon . | . . . Special Melee Weapon . | . . . Unidentified Prototypes . | . . . Parts Lost 8 | . 2 6 Power 1 | . . 1 Propulsion 3 | . 1 2 Utility . | . . . Weapon 4 | . 1 3 Highest Loss Streak 5 | . 2 5 To Critical Strikes . | . . . Average Backups 9 | 2 9 14 Power 1 | . 1 . Propulsion 1 | . 1 . Utility 4 | . 3 8 Weapon 2 | . 2 4 Tool/Special . | . . . Unused Backups 11 | . 1 10 Power . | . . . Propulsion . | . . . Utility 9 | . . 9 Weapon 2 | . 1 1 Tool/Special . | . . . Average Slot Usage (%) 96 | . 97 87 Engine 7 | . 8 3 Core 5 | . 5 3 Treads 15 | . 17 . Wheel 10 | . 9 25 Device 12 | . 12 14 Storage 14 | . 14 14 Energy Gun 11 | . 12 4 Ballistic Gun 11 | . 12 . Launcher 3 | . 2 11 Peak Build Rating 12 | 6 12 10 Average Rating 9 | 4 9 8 On Entrance 5 | . 6 10 Avg Prop Armor Cover (%) . | . . . Naked Turns . | . . . Heaviest Build 32 | 12 32 32 Greatest Support 40 | 40 40 20 Greatest Overweight (x) 2 | . 1 2 Average Overweight (x) . | . . 1 Largest Inventory Capacity 15 | 8 15 15 Average Capacity 13 | 7 13 15 Most Carried 15 | 4 15 15 Average Carried 9 | 2 9 14 Final Capacity 15 | 8 15 15 Final Carried 15 | 4 15 13 Class Distribution -------------------- 100% | Mutant Dominant Class ---------------- Mutant | -10/Materials Mutant | -10/Subcaves Resources | -11 -10 -10 ----------- Run | Yrd Mat Sub Matter Collected 830 | 246 499 85 Remotely . | . . . Salvage Created 791 | . 648 143 Parts 57 | . 45 12 Haulers Intercepted . | . . . Recyclers Shooed 1 | . 1 . Parts Field Recycled . | . . . Retrieved Matter . | . . . Parts Self-Destructed 11 | . . 11 Prevented . | . . . Parts Restored . | . . . Kills | -11 -10 -10 ------- Run | Yrd Mat Sub Combat Hostiles Destroyed 23 | . 16 7 Guns 16 | . 15 1 Cannons 3 | . . 3 AOE 4 | . 1 3 Classes Destroyed 7 | . 6 1 Builder 1 | . 1 . Recycler 1 | . 1 . Operator 3 | . 3 . Watcher 3 | . 3 . Swarmer 9 | . 6 3 Grunt 10 | . 10 . Subdweller 4 | . . 4 Best Kill Streak 6 | . 6 3 Combat Bots Only 4 | . 4 3 Max Kills in Single Turn 2 | . 2 2 Gunslinging 1 | . 1 . Exploded 2 | . 1 2 Melee . | . . . Uniques/NPCs Destroyed . | . . . Combat | -11 -10 -10 -------- Run | Yrd Mat Sub Hostile Shots Fired 177 | . 85 92 Missed 55 | . 20 35 Hits 122 | . 65 57 Projectile 122 | . 65 57 Damage Taken 1377 | . 687 690 Core 252 | . 89 163 Absorbed by Shields . | . . . Regen/Repaired (Parts) 14 | . 14 . Core Remaining (%) 100 | 100 . . Volleys Fired 87 | . 62 25 Largest 2 | . 2 2 Hottest 70 | . 68 70 Shots Fired 168 | . 124 44 Gun 132 | . 123 9 Cannon 21 | . . 21 Launcher 15 | . 1 14 Special . | . . . Kinetic 92 | . 71 21 Thermal . | . . . Explosive 15 | . 1 14 Electromagnetic 61 | . 52 9 Robot Hit Streak 16 | . 5 16 Robot Miss Streak 6 | . 4 6 Penetration Max . | . . . Secondary Targets 2 | . 2 . Max Gunslinging Chain 1 | . 1 . Shots Hit Robots 91 | . 65 26 Core Hits 54 | . 29 25 Critical Kills . | . . . Critical Parts Destroyed . | . . . Critical Strikes 3 | . 2 1 Blast 1 | . . 1 Corrupt 2 | . 2 . Melee Attacks . | . . . Impact . | . . . Slashing . | . . . Piercing . | . . . Sneak Attacks . | . . . Combat Hostiles . | . . . Follow-up Attacks . | . . . Damage Inflicted 2052 | . 1212 840 Guns 1158 | . 1054 104 Cannons 225 | . . 225 Explosions 665 | . 154 511 Melee . | . . . Ramming 4 | . 4 . Kinetic 762 | . 537 225 Thermal 114 | . 114 . Explosive 551 | . 40 511 Electromagnetic 621 | . 517 104 Impact . | . . . Slashing . | . . . Piercing . | . . . Highest Corruption 2 | . 2 2 Average Corruption 2 | . 2 2 Corruption Purged . | . . . Corruption Blocked . | . . . Effects 33 | . 32 1 Message Errors 9 | . 9 . Matter Fused 8 | . 7 1 Heat Flow Errors 5 | . 5 . Energy Discharges 1 | . 1 . Data Loss (minor) 6 | . 6 . Data Loss (major) 2 | . 2 . Misfires 1 | . 1 . Alerts 1 | . 1 . Overload Shots . | . . . Overflow Damage . | . . . Projectiles . | . . . Explosions . | . . . Melee . | . . . Knockbacks 4 | . . 4 Impact . | . . . Kinetic 4 | . . 4 Secondary . | . . . Self-Inflicted Damage 37 | . 37 . Shots 1 | . 1 . Rammed 1 | . 1 . Targets Rammed 1 | . 1 . Kicked . | . . . Crushed . | . . . Highest Temperature 222 | . 222 13 Average Temperature 75 | . 75 13 Received Heat Transfer 513 | . 243 270 Siege Activations . | . . . Martial Activations . | . . . Shielding Activations . | . . . Robots Disrupted . | . . . Combat Hostiles . | . . . Robots Corrupted . | . . . Combat Hostiles . | . . . Parts Fried 2 | . 2 . Impact Corruptions . | . . . Robots Melted . | . . . Combat Hostiles . | . . . Parts Melted 2 | . . 2 Heat Transferred 200 | . 200 . Parts Sabotaged . | . . . Parts Stolen . | . . . Parts Stripped . | . . . Power Chain Reactions 2 | . 2 . Alert | -11 -10 -10 ------- Run | Yrd Mat Sub Maximum Alert Level . | . . . Low Security (%) 100 | 100 100 . Level 1 . | . . . Level 2 . | . . . Level 3 . | . . . Level 4 . | . . . Level 5 . | . . . High Security . | . . . Max Security . | . . . Peak Influence 199 | . 199 . Initial . | . . . Average 53 | . 56 . Influence Increases 633 | . 513 120 Destroy 0b10 Robot/C 380 | . 320 60 Destroy 0b10 Robot/NC 40 | . 40 . Destroy Leader 76 | . 76 . Successful Hack 14 | . 14 . Disable Machine 30 | . 30 . Destroy Structure 18 | . 18 . Lose Combat Pursuer 75 | . 15 60 Influence Decreases 593 | . 513 80 Time Decay 401 | . 371 30 Lost Part 70 | . 20 50 Purge Threat 122 | . 122 . Squads Dispatched 4 | . 4 . Investigation 3 | . 3 . Extermination . | . . . Reinforcement 1 | . 1 . Assault . | . . . Garrison . | . . . Intercept . | . . . Searches Triggered . | . . . Construction Impeded . | . . . Haulers Reinforced . | . . . Active Scanning Responses . | . . . Cargo Convoy Interrupts . | . . . Stealth | -11 -10 -10 --------- Run | Yrd Mat Sub Distress Signals 2 | . 2 . Communications Jammed . | . . . Distress Signals . | . . . Times Spotted 41 | . 29 12 Peak Tracking Total 6 | . 6 5 Tactical Retreats 3 | . 1 2 Traps | -11 -10 -10 ------- Run | Yrd Mat Sub Traps Triggered 2 | . 2 . Indirectly . | . . . Trap Hack Attempts . | . . . Triggered . | . . . Disarmed . | . . . Reprogrammed . | . . . Reused . | . . . Traps Extracted . | . . . Installed . | . . . Triggered . | . . . Machines | -11 -10 -10 ---------- Run | Yrd Mat Sub Machines Disabled 5 | . 2 3 Max in Single Turn 1 | . 1 1 Machines Repaired . | . . . Machines Dismantled . | . . . Machines Sabotaged . | . . . Overloaded Fab Kills . | . . . Hacking | -11 -10 -10 --------- Run | Yrd Mat Sub Machines Accessed 10 | . 10 . Terminals 7 | . 7 . Fabricators . | . . . Repair Stations 1 | . 1 . Recycling Units 2 | . 2 . Scanalyzers . | . . . Garrison Access . | . . . Total Hacks 28 | . 28 . Successful 15 | . 15 . Failed 13 | . 13 . Catastrophic 2 | . 2 . Database Lockouts . | . . . Manual . | . . . Terminals 21 | . 21 . Fabricators . | . . . Repair Stations 3 | . 3 . Recycling Units 4 | . 4 . Scanalyzers . | . . . Garrison Access . | . . . Terminal Hacks 10 | . 10 . Record 1 | . 1 . Prototype ID Bank 3 | . 3 . Emergency Access Points 1 | . 1 . Unreport Threat 3 | . 3 . Zone Layout 2 | . 2 . Fabricator Hacks . | . . . Repair Station Hacks 2 | . 2 . Scan Component 1 | . 1 . Repair 1 | . 1 . Recycling Unit Hacks 3 | . 3 . Report Inventory 2 | . 2 . Retrieve Components 1 | . 1 . Scanalyzer . | . . . Garrison Access Hacks . | . . . Unauthorized Hacks . | . . . Terminals . | . . . Fabricators . | . . . Repair Stations . | . . . Recycling Units . | . . . Scanalyzers . | . . . Garrison Access . | . . . Data Cores Recovered 2 | . 2 . Used 1 | . 1 . Hacking Detections 6 | . 6 . Full Trace Events 1 | . 1 . Feedback Events . | . . . Feedback Blocked . | . . . Robot Schematics Acquired . | . . . Robots Built . | . . . Authchips . | . . . Time . | . . . Total Robot Build Rating . | . . . Part Schematics Acquired . | . . . Parts Built . | . . . Authchips . | . . . Time . | . . . Total Part Build Rating . | . . . Part Studies Acquired . | . . . Parts Repaired 1 | . 1 . Time 26 | . 26 . Parts Recycled . | . . . Recycled Matter . | . . . Retrieved Matter . | . . . Retrieved Components 3 | . 3 . Parts Scanalyzed . | . . . Part Schematics Acquired . | . . . Parts Damaged . | . . . Bothacking | -11 -10 -10 ------------ Run | Yrd Mat Sub Used RIF Installer . | . . . Robots Hacked . | . . . Non-combat . | . . . Combat . | . . . Robot Hacks Applied . | . . . Relay Couplers Released . | . . . Fabnet Peak Effective % . | . . . Robots Rewired . | . . . Allies Hacked . | . . . Hacks Repelled . | . . . Allies | -11 -10 -10 -------- Run | Yrd Mat Sub Total Allies . | . . . Largest Group . | . . . Highest-Rated Group . | . . . Highest-Rated Ally . | . . . Total Orders . | . . . Ally Attacks . | . . . Total Damage . | . . . Kills . | . . . Allies Corrupted . | . . . Allies Melted . | . . . Intel | -11 -10 -10 ------- Run | Yrd Mat Sub Active Infowar (turns) 1813 | . 1636 177 Sensors 1811 | . 1634 177 Structural 2 | . 2 . Robot Analysis Total . | . . . Derelict Logs Recovered . | . . . Drone Launches . | . . . Drone Recoveries . | . . . Exploration | -11 -10 -10 ------------- Run | Yrd Mat Sub Turns Passed 2041 | 84 1780 177 Spaces Moved 1228 | 46 1082 100 Core 4 | 4 . . Treads 618 | 42 576 . Legs . | . . . Wheels 606 | . 506 100 Hover . | . . . Flight . | . . . Fastest Speed 50 | 50 95 95 Average Speed 131 | 150 134 97 Slowest Speed 240 | 160 240 110 Overloaded Moves . | . . . Propulsion Burnouts . | . . . Robots Hopped . | . . . Potential Cave-ins . | . . . Cave-ins Triggered . | . . . Exploration Rate (%) 37 | 3 99 10 Regions Visited 2 Branch Regions 1 Pre-discovered Areas . | . . . Known Exits Taken . | . . . Unknown Exits Taken 2 | 1 1 . Scrap Searched . | . . . Spaces Dug . | . . . Terrain Destroyed 63 | . 16 47 Melee . | . . . Projectile . | . . . AOE 63 | . 16 47 Terrain Rammed . | . . . Walls Destroyed . | . . . Machines Disabled . | . . . Actions | -11 -10 -10 --------- Run | Yrd Mat Sub Total 1491 | 61 1294 136 Wait 97 | . 97 . Move 1226 | 45 1081 100 Hop . | . . . Pick Up 37 | 10 25 2 Fast Attach . | . . . Attach 12 | 6 3 3 Detach . | . . . Swap 18 | . 14 4 Drop 13 | . 11 2 Fire 87 | . 62 25 Melee . | . . . Ram . | . . . Kick . | . . . Crush 1 | . 1 . Escape Stasis . | . . . Rewire . | . . . Trap . | . . . Miscellaneous . | . . . Route ------- -11/Scrapyard -10/Materials (discovered 5 exits: [*Mat x3] / [*Min] / [*Sub]) -10/Subcaves (discovered 1 exit: [*Rec]) History --------- Turn | Location | Event 2 | -11/Scrapyard | Met Revision 17 55 | -11/Scrapyard | Discovered new exit (range 16) 85 | -11/Scrapyard | Entered Materials 317 | -10/Materials | Build established: Mutant 425 | -10/Materials | Discovered new exit (range 11) 682 | -10/Materials | Discovered new exit (range 16) 937 | -10/Materials | Repaired ECM Suite 1227 | -10/Materials | Discovered new exit (range 16) 1518 | -10/Materials | Discovered new exit (range 16) 1859 | -10/Materials | Discovered new exit (range 8) 1865 | -10/Materials | Entered Subcaves 1866 | -10/Subcaves | Approached by a straggling Scientist 1881 | -10/Subcaves | Core integrity fell below 50% 1903 | -10/Subcaves | A swath of the cavern ceiling suddenly collapsed 1996 | -10/Subcaves | Core integrity fell below 20% 2005 | -10/Subcaves | Ambushed by Subdweller buried in earth 2036 | -10/Subcaves | Discovered new exit (range 15) 2042 | -10/Subcaves | Destroyed by Autobeam Turret with Autobeam Last Messages --------------- 01994_ Lgt. Ion Engine fries itself beyond repair. 01995_ KM-UU3(R) knocked back. 01996_ Grenade Launcher destroyed. 02004_ Wheel destroyed. 02006_ 4A-LQH(R): "NOSTUCKSUB!" 02008_ S-10 Pest destroyed. 02011_ 4A-LQH(R) destroyed. 02012_ Lgt. Cannon destroyed. 02014_ KM-UU3(R) destroyed. 02017_ Lgt. Ion Engine fries itself beyond repair. 02021_ Acquired 24 matter. 02023_ Acquired Unknown Engine. 02026_ The unstable cave ceiling collapses. 02028_ Identified Sub. Power Source. 02029_ The unstable cave ceiling collapses. 02036_ EXIT=FOUND 02040_ Machine disabled. 02042_ Grenade Launcher destroyed. Map ----- +----------------------------------------------------+ | ????????? ???????????????????????????????????????? | | ??????? ? ???????????????????????????????????????? | | ??????? ???????????????????????????????????????? | | ??????? ???????????????????????????????????????? | | ???????# ##?????????????????????????????????????? | | ???????# "##????????????????????????????????????? | | ???????# "#????????????????????????????????????? | | ???????#"" "##??###??????????????????????????????? | | ???????# """"### #??????????????????????????????? | | ???????# """"" #??????????????????????????????? | | ???????# " " #??????????#???????????????????? | | ?????### " #??????????""#???????????????????? | | ?????# ##???#######" #### ???????????????? | | ?????# ## #????# "#""# ???????????????? | | ?????##??# ###### """" ???????????????? | | ????????## # ## """ ??????????????? | | ?????## [& "##???????????????????? | | # ### ## & ! " #???????????????????? | | ?# ## && #???????????????????? | | ?### ### #???????????????????? | | ???##### ## #?## #???????????????????? | | ???????##?## ##??# ##???????????????????? | | ??????????# ##??## ##????????????????????? | | ?????????## #?## #? #??????????????????? | | ?????????# ##?# # # "#?????????? | | ?????????## ### @ t "#?????????? | | ??????????# # <#????????? | | ??????????# %= t""??????????? | | ?????????## ## # # "??????????? | | ?????????# ## # # #?????????? | | ?????????# ## # ##### ""??????????? | | ?????????# ### #####?????# ####???????????? | | ?????????# ## ## #??????????#??????????????? | | ?????????## ###?# #?????????????????????????? | | ?????????## ##???# #?????????????????????????? | | ?????????# ###??# #?????????????????????????? | | ?????????## ##### #??????????????????????????? | | ??????????# ## #??????????????????????????? | | ?????????## #??????????????????????????? | | ?????????# #??????????????????????????? | | ????????## ##??????????????????????????? | | ???????## ##???????????????????????????? | | ???????# ##????????????????????????????? | | ???????# ##?????????????????????????????? | | ???????# #??????????????????????????????? | | ???????# ##?????????????????????????????? | | ???????# &! #?????????????????????????????? | | #?????## %& #####?????????????????????????????? | | #??###%= #[ ""##???????????????????????????????? | | ### [ =!# "#""##???????????????????????????????? | +----------------------------------------------------+ Best States ------------- Heat Dissipation 25 Energy Generation 15 Energy Capacity 250 Matter Stores 300 Matter Capacity 300 Sight Range 16 Robot Scan Range 14 Terrain Scan Density 10 Evasion (%) 41 Recoil Reduction 2 Item Schematics ----------------- None Robot Schematics ------------------ None Fabricated ------------ Nothing Repaired ---------- ECM Suite | 30% | -10/Materials Studied --------- None Alien Tech Used ----------------- None Achievements -------------- You Again Challenges ------------ None Game ------ Seed PhaseMultinovaPurifier Manual? 0 Play Time 00:23:40 Cumulative 31.2 hours Start 2026.08.25 @ 10:03:37 End 2026.08.25 @ 10:49:24 Sessions 1 Manual Loads 0 Difficulty Rogue Special Mode None Game No. 46 Rogue 46 Adventurer 0 Explorer 0 Win Type - Total 0 Types 0/0/0/0/0/0/0/0/0/0 Lore% 17 Gallery% 20 Achievement% 18 Wizard Run 0 Options --------- Layout 1 ASCII 0 Keyboard 0 Movement Mouse Keybinds 0 Fullscreen 1 Font 16/SmallcapsGlow Map View 50x40 Zoom Use 0% Tactical HUD 1 Map Filters NONE Filters NONE Steam SD RUN: b27f8ac1-f124-428e-b270-656d459811df